bitfinex-derivatives/quotes_BTCF0:USTF0_20241120
["timestamp","ask_amount","ask_price","bid_price","bid_amount"]
[1732069770477,0.0626,92062.0,92052.0,0.15995477]
[1732069770667,0.0626,92062.0,92061.0,0.054233]
[1732069771775,0.00056001,92070.0,92069.0,0.054228]
[1732069771968,0.032,92078.0,92077.0,0.054223]
[1732069773772,0.032,92078.0,92077.0,0.174623]
[1732069774880,0.032,92078.0,92077.0,0.054223]
[1732069777793,0.054233,92061.0,92054.0,0.00096]
[1732069777971,0.3929,92060.0,92050.0,0.00162897]
[1732069778278,0.3608,92052.0,92050.0,0.00162897]
[1732069779184,8.698e-05,92051.0,92050.0,0.00162897]
[1732069779602,8.698e-05,92051.0,92038.0,0.0039]
[1732069779603,0.10580375,92051.0,92038.0,0.0039]
[1732069779894,0.10571677,92044.0,92038.0,0.0039]
[1732069780983,0.054244,92042.0,92038.0,0.0039]
[1732069781174,0.3608,92043.0,92038.0,0.0039]
[1732069781175,0.054245,92041.0,92038.0,0.0039]
[1732069781371,0.05425,92033.0,92027.0,0.00011724]
[1732069781571,0.39276001,92043.0,92015.0,0.054259]
[1732069781572,0.054252,92028.0,92015.0,0.054259]
[1732069781774,0.3608,92024.0,92015.0,0.054259]
[1732069781985,0.3608,92024.0,92011.0,0.3608]
[1732069782278,0.3608,92024.0,92018.0,0.054258]
[1732069782502,0.054252,92028.0,92018.0,0.054258]
[1732069784774,0.085253,92027.0,92011.0,0.415062]
[1732069784975,0.054254,92026.0,92016.0,0.054259]
[1732069786481,0.10571677,92023.0,92016.0,0.054259]
[1732069787184,0.46651677,92023.0,92016.0,0.054259]
[1732069788387,0.031,92027.0,92011.0,0.3608]
[1732069788582,0.031,92027.0,92013.0,0.10571677]
[1732069788779,0.031,92027.0,92025.0,0.054254]
[1732069789523,0.031,92027.0,92014.0,0.05426]
[1732069789524,0.054255,92023.0,92014.0,0.05426]
[1732069789681,0.031,92027.0,92014.0,0.05426]
[1732069789892,0.3608,92020.0,92014.0,0.05426]
[1732069791396,0.3925,92020.0,92014.0,0.05426]
[1732069792092,0.0317,92020.0,92011.0,0.3608]
[1732069792310,0.0317,92020.0,92015.0,0.054259]
[1732069793295,0.0317,92020.0,92011.0,0.3608]
[1732069793296,0.085957,92020.0,92011.0,0.415062]
[1732069793682,0.19167377,92020.0,92011.0,0.3608]
[1732069793883,0.55247377,92020.0,92005.0,0.054265]
[1732069794289,0.15997777,92013.0,92005.0,0.054265]
[1732069794592,0.15997777,92013.0,92006.0,0.054265]
[1732069794992,0.15997777,92013.0,92000.0,0.00010145]
[1732069794993,0.50387678,92020.0,92008.0,0.054264]
[1732069795195,0.55247377,92020.0,92009.0,0.054263]
[1732069796092,0.49821677,92020.0,92009.0,0.054263]
[1732069796295,0.054257,92019.0,92009.0,0.054263]
[1732069797293,0.49885677,92020.0,92009.0,0.054263]
[1732069797488,0.054259,92017.0,92009.0,0.054263]
[1732069798299,0.05426,92015.0,92003.0,0.054267]
[1732069798701,0.05426,92015.0,92004.0,0.054266]
[1732069799194,0.05426,92015.0,92006.0,0.054265]
[1732069799511,0.51945807,92020.0,92009.0,0.054263]
[1732069799695,0.51881807,92020.0,92010.0,0.054263]
[1732069799895,0.51881807,92020.0,92001.0,0.3608]
[1732069800282,0.3925,92020.0,92019.0,0.054257]
[1732069800485,0.49835545,92020.0,92001.0,0.3608]
[1732069800692,0.054258,92018.0,92001.0,0.3608]
[1732069800995,0.49835545,92020.0,92008.0,0.054263]
[1732069800996,0.054261,92013.0,92008.0,0.054263]
[1732069802202,0.49899545,92020.0,92001.0,0.3608]
[1732069802500,0.054259,92016.0,92007.0,0.054264]
[1732069805501,0.054261,92014.0,92007.0,0.054264]
[1732069805802,0.3608,92011.0,92007.0,0.054264]
[1732069806397,0.3608,92011.0,92000.0,0.19420134]
[1732069806603,0.3608,92011.0,92000.0,0.00010145]
[1732069806604,0.3608,92001.0,92000.0,0.00010145]
[1732069806792,0.415068,92001.0,92000.0,0.00010145]
[1732069807198,0.864708,92001.0,92000.0,0.00010145]
[1732069807504,0.15999177,91989.0,91988.0,0.00163059]
[1732069807800,0.15999177,91989.0,91988.0,0.1955031]
[1732069808001,0.15999177,91989.0,91988.0,0.00163059]
[1732069808186,0.054276,91988.0,91982.0,0.00066]
[1732069808391,0.054278,91984.0,91982.0,0.00066]
[1732069809390,0.10571677,91983.0,91982.0,0.00066]
[1732069809788,0.10571677,91983.0,91967.0,0.25903881]
[1732069810120,0.10571677,91983.0,91957.0,0.3907]
[1732069810121,0.054289,91965.0,91964.0,0.25903881]
[1732069810296,0.10571677,91963.0,91962.0,0.25903881]
[1732069810493,0.10571677,91963.0,91954.0,0.12356]
[1732069810494,0.10571677,91963.0,91959.0,0.32457908]
[1732069810892,0.10571677,91963.0,91961.0,0.25909363]
[1732069811095,9.937e-05,91962.0,91957.0,0.25909363]
[1732069811298,9.937e-05,91962.0,91950.0,8.766e-05]
[1732069811299,0.57223354,91958.0,91950.0,8.766e-05]
[1732069811499,0.16001377,91951.0,91950.0,8.766e-05]
[1732069812011,0.054297,91951.0,91950.0,8.766e-05]
[1732069812527,0.380577,91951.0,91950.0,8.766e-05]
[1732069813017,0.504177,91951.0,91950.0,8.766e-05]
[1732069813189,0.177897,91951.0,91950.0,8.766e-05]
[1732069813506,0.19919247,91951.0,91950.0,8.766e-05]
[1732069813699,0.07559247,91951.0,91950.0,8.766e-05]
[1732069816296,0.4844,91957.0,91950.0,8.766e-05]
[1732069816510,0.3608,91958.0,91950.0,8.766e-05]
[1732069816706,0.3608,91958.0,91952.0,0.054297]
[1732069817299,0.3608,91958.0,91953.0,0.054296]
[1732069817500,0.3608,91958.0,91955.0,0.054295]
[1732069818801,0.46651677,91958.0,91950.0,8.766e-05]
[1732069819015,0.16001377,91951.0,91950.0,8.766e-05]
[1732069819901,0.10571677,91951.0,91950.0,8.766e-05]
[1732069822417,0.19261377,91952.0,91950.0,8.766e-05]
[1732069825505,0.21360235,91952.0,91950.0,8.766e-05]
[1732069826704,0.31931912,91952.0,91950.0,8.766e-05]
[1732069826908,0.054307,91935.0,91933.0,0.0315]
[1732069827103,0.64559912,91952.0,91924.0,0.054313]
[1732069827104,0.16002477,91934.0,91924.0,0.054313]
[1732069827327,0.3608,91938.0,91924.0,0.054313]
[1732069827328,0.10571677,91925.0,91924.0,0.054313]
[1732069827551,0.10571677,91925.0,91921.0,0.0302]
[1732069827816,0.10571677,91925.0,91921.0,0.084515]
[1732069828025,0.10571677,91925.0,91922.0,0.054314]
[1732069829221,0.10571677,91925.0,91918.0,0.054317]
[1732069829421,0.054313,91924.0,91911.0,0.0315]
[1732069829609,0.054313,91924.0,91913.0,0.05595167]
[1732069829812,0.10571677,91918.0,91914.0,0.054319]
[1732069830014,0.46651677,91918.0,91914.0,0.054319]
[1732069830514,0.46651677,91918.0,91913.0,0.00163167]
[1732069830908,0.46651677,91918.0,91916.0,0.054318]
[1732069831322,0.3608,91918.0,91916.0,0.054318]
[1732069831626,0.054319,91914.0,91913.0,0.00163167]
[1732069832814,0.00012283,91917.0,91913.0,0.00163167]
[1732069833015,0.36092283,91917.0,91913.0,0.00163167]
[1732069833317,0.00012283,91917.0,91915.0,0.054318]
[1732069838626,0.05444083,91917.0,91916.0,0.01698078]
[1732069838812,0.05444083,91917.0,91916.0,0.01698079]
[1732069839022,0.05444083,91917.0,91913.0,0.00163167]
[1732069839226,0.05444083,91917.0,91914.0,0.01698092]
[1732069839414,0.05444083,91917.0,91913.0,0.00163167]
[1732069839819,0.05444083,91917.0,91913.0,0.05595167]
[1732069840129,0.00012283,91917.0,91915.0,0.054319]
[1732069843331,0.05444083,91917.0,91915.0,0.054319]
[1732069843525,0.00012283,91917.0,91915.0,0.054319]
[1732069848130,0.054319,91915.0,91913.0,0.00163167]
[1732069848427,0.10571677,91914.0,91913.0,0.00163167]
[1732069849023,0.13801677,91914.0,91913.0,0.00163167]
[1732069849635,0.15881914,91914.0,91913.0,0.00163167]
[1732069852731,0.054322,91911.0,91904.0,9.701e-05]
[1732069853036,0.10571677,91905.0,91904.0,9.701e-05]
[1732069855132,0.46651677,91905.0,91904.0,9.701e-05]
[1732069855842,0.49741677,91905.0,91904.0,9.701e-05]
[1732069873748,0.054326,91904.0,91878.0,0.00104]
[1732069873951,0.054338,91882.0,91877.0,0.25907151]
[1732069874151,0.16005477,91882.0,91873.0,0.25907151]
[1732069874353,0.16005477,91882.0,91872.0,0.25907151]
[1732069874545,0.16005477,91882.0,91870.0,0.25907151]
[1732069874746,0.16016182,91882.0,91870.0,0.25907151]
[1732069874961,0.16016182,91882.0,91868.0,0.28937151]
[1732069875269,0.16016182,91882.0,91868.0,0.0303]
[1732069876047,0.10582382,91882.0,91868.0,0.0303]
[1732069876251,0.46651677,91873.0,91868.0,0.0303]
[1732069876849,0.054345,91871.0,91868.0,0.0303]
[1732069877567,0.46707678,91873.0,91868.0,0.0303]
[1732069877568,0.054346,91870.0,91868.0,0.0303]
[1732069878875,0.054353,91857.0,91852.0,0.00013362]
[1732069879371,0.3608,91865.0,91852.0,0.00013362]
[1732069879780,0.39161172,91873.0,91863.0,0.3608]
[1732069880078,0.38141172,91873.0,91864.0,0.0632]
[1732069880285,0.38141172,91873.0,91869.0,0.054346]
[1732069880478,0.38141172,91873.0,91870.0,0.0306]
[1732069881675,0.16006077,91872.0,91870.0,0.0306]
[1732069882181,0.3608,91873.0,91870.0,0.0306]
[1732069882384,0.02125918,91880.0,91875.0,0.054342]
[1732069882567,0.3608,91884.0,91870.0,0.0306]
[1732069882769,0.054339,91880.0,91870.0,0.0306]
[1732069882971,0.054339,91880.0,91878.0,0.05434]
[1732069883172,0.3608,91884.0,91880.0,0.054339]
[1732069883383,0.054347,91868.0,91866.0,0.3608]
[1732069883597,0.054347,91868.0,91867.0,0.0638]
[1732069887182,0.054347,91868.0,91854.0,0.25986812]
[1732069887391,0.054354,91855.0,91852.0,0.00013362]
[1732069887587,0.3608,91862.0,91853.0,0.054355]
[1732069887775,0.054352,91859.0,91854.0,0.054355]
[1732069887978,0.10571677,91864.0,91852.0,0.00013362]
[1732069888190,0.05435,91862.0,91858.0,0.054352]
[1732069888574,0.05435,91862.0,91859.0,0.054351]
[1732069889089,0.3608,91865.0,91852.0,0.00013362]
[1732069889090,0.054355,91854.0,91852.0,0.00013362]
[1732069889272,0.054365,91837.0,91831.0,0.0051]
[1732069889475,0.054365,91837.0,91830.0,0.031]
[1732069889476,0.415165,91837.0,91830.0,0.031]
[1732069889681,0.415165,91837.0,91817.0,0.0322]
[1732069889882,0.10571677,91818.0,91817.0,0.0322]
[1732069891086,0.10571677,91818.0,91812.0,0.0326]
[1732069891087,0.054379,91814.0,91812.0,0.0326]
[1732069892989,0.10571677,91818.0,91812.0,0.0326]
[1732069893680,0.054376,91819.0,91812.0,0.0326]
[1732069894280,0.3608,91823.0,91812.0,0.086979]
[1732069894482,0.3608,91823.0,91813.0,0.00097083]
[1732069894883,0.054372,91826.0,91813.0,0.00097083]
[1732069895095,0.054367,91835.0,91824.0,0.054372]
[1732069895283,0.054367,91835.0,91826.0,0.054371]
[1732069895488,0.054367,91835.0,91827.0,0.05437]
[1732069895686,0.054367,91835.0,91828.0,0.0325]
[1732069896575,0.054361,91843.0,91832.0,0.054368]
[1732069896944,0.054364,91839.0,91833.0,0.0332]
[1732069897279,0.054366,91836.0,91833.0,0.0332]
[1732069897636,0.10571677,91835.0,91811.0,0.02175815]
[1732069897780,0.054376,91818.0,91814.0,0.5117]
[1732069898088,0.054376,91818.0,91814.0,0.122]
[1732069898296,0.054376,91818.0,91814.0,0.121]
[1732069898479,0.054376,91818.0,91813.0,0.00097083]
[1732069901393,0.00060001,91822.0,91813.0,0.00097083]
[1732069901590,0.054372,91825.0,91818.0,0.054376]
[1732069903293,0.054374,91822.0,91813.0,0.00097083]
[1732069903595,0.054377,91817.0,91816.0,0.35962223]
[1732069907894,0.054377,91817.0,91813.0,0.00097083]
[1732069908689,0.054378,91815.0,91813.0,0.00097083]
[1732069910094,0.3608,91817.0,91814.0,0.10571677]
[1732069910295,0.3608,91826.0,91815.0,0.054378]
[1732069912013,0.054375,91820.0,91815.0,0.054378]
[1732069913303,0.054376,91819.0,91815.0,0.054378]
[1732069914401,0.3608,91817.0,91813.0,0.00097083]
[1732069914597,0.054378,91814.0,91813.0,0.00097083]
[1732069920005,0.07481659,91814.0,91813.0,0.00097083]
[1732069922202,0.43572531,91814.0,91813.0,0.00097083]
[1732069934718,0.36090872,91814.0,91813.0,0.00097083]
[1732069934917,0.36090872,91814.0,91813.0,0.21344843]
[1732069935104,0.36090872,91814.0,91813.0,0.01797152]
[1732069935301,0.36090872,91814.0,91813.0,0.05097152]
[1732069935710,0.36090872,91814.0,91813.0,0.01797152]
[1732069936607,0.36090872,91814.0,91813.0,0.00097083]
[1732069937816,0.00010872,91814.0,91813.0,0.19642975]
[1732069938015,0.00010872,91814.0,91813.0,0.00097083]
[1732069938216,0.00010872,91814.0,91804.0,0.25986812]
[1732069938217,0.05438,91811.0,91804.0,0.25986812]
[1732069938428,0.05438,91811.0,91808.0,0.19547629]
[1732069938429,0.3608,91811.0,91808.0,0.19547629]
[1732069938623,0.3608,91811.0,91807.0,0.19547629]
[1732069938624,0.054382,91808.0,91807.0,0.19547629]
[1732069938916,0.054382,91808.0,91806.0,0.19547629]
[1732069940230,0.054382,91808.0,91807.0,0.19547629]
[1732069940547,0.054382,91808.0,91803.0,0.0001181]
[1732069940706,0.054382,91808.0,91807.0,0.19548596]
[1732069941522,0.054382,91808.0,91803.0,0.25998622]
[1732069941818,0.07555019,91808.0,91803.0,0.25998622]
[1732069942013,0.07555019,91808.0,91807.0,0.19549761]
[1732069942530,0.054383,91807.0,91803.0,0.0001181]
[1732069942910,0.054383,91807.0,91804.0,0.19551527]
[1732069943110,0.3608,91806.0,91803.0,0.0001181]
[1732069943711,0.054384,91805.0,91803.0,0.0001181]
[1732069947118,0.1172,91804.0,91803.0,0.0001181]
[1732069948523,0.22291677,91804.0,91803.0,0.0001181]
[1732069949319,0.054386,91801.0,91800.0,0.1]
[1732069949518,0.415186,91801.0,91800.0,0.1]
[1732069949729,0.415186,91801.0,91800.0,0.01969679]
[1732069950923,0.415186,91801.0,91783.0,0.0051]
[1732069950924,0.3608,91801.0,91783.0,0.0051]
[1732069951133,0.46651677,91784.0,91770.0,0.0051]
[1732069951424,0.46651677,91784.0,91766.0,0.0629]
[1732069951425,0.3608,91772.0,91766.0,0.0629]
[1732069951949,0.054406,91767.0,91765.0,0.19551527]
[1732069952228,0.054406,91767.0,91762.0,0.02110665]
[1732069952229,0.054409,91764.0,91762.0,0.00011581]
[1732069952430,0.05448744,91771.0,91762.0,0.00011581]
[1732069952619,8.344e-05,91771.0,91766.0,0.10571677]
[1732069952824,8.344e-05,91771.0,91767.0,0.0323]
[1732069953029,8.344e-05,91771.0,91769.0,0.054405]
[1732069953226,8.344e-05,91771.0,91770.0,0.0309]
[1732069953623,8.344e-05,91771.0,91770.0,0.35782]
[1732069955331,8.344e-05,91771.0,91770.0,0.38782]
[1732069956532,8.344e-05,91771.0,91770.0,0.58333527]
[1732069956728,8.344e-05,91771.0,91770.0,0.38782]
[1732069957634,0.0051,91787.0,91786.0,0.054395]
[1732069957829,0.36243493,91803.0,91786.0,0.3608]
[1732069958028,0.00163493,91803.0,91787.0,0.13801677]
[1732069958223,0.10571677,91802.0,91786.0,0.001]
[1732069958537,0.10571677,91802.0,91779.0,0.25993183]
[1732069958538,0.3608,91793.0,91778.0,0.1172]
[1732069958749,0.054399,91780.0,91778.0,0.1172]
[1732069958923,0.054399,91780.0,91776.0,0.1172]
[1732069959442,0.3608,91793.0,91775.0,0.1172]
[1732069959443,0.3608,91785.0,91775.0,0.1172]
[1732069959650,0.054401,91777.0,91775.0,0.1172]
[1732069959825,0.054401,91777.0,91770.0,0.0309]
[1732069959826,0.054401,91776.0,91770.0,0.0309]
[1732069960027,0.054402,91775.0,91770.0,0.0309]
[1732069960933,0.415202,91775.0,91770.0,0.0309]
[1732069961240,0.054405,91769.0,91767.0,0.00163432]
[1732069964043,0.3608,91772.0,91767.0,0.00163432]
[1732069964430,0.415203,91772.0,91767.0,0.00163432]
[1732069965242,0.054405,91770.0,91767.0,0.00163432]
[1732069966143,0.3608,91772.0,91767.0,0.00163432]
[1732069966639,0.054404,91771.0,91767.0,0.00163432]
[1732069966836,0.3608,91772.0,91767.0,0.00163432]
[1732069967033,0.054405,91769.0,91767.0,0.00163432]
[1732069969750,0.10627738,91768.0,91767.0,0.00163432]
[1732069969973,1.08005714,91768.0,91749.0,0.0051]
[1732069970242,1.08005714,91768.0,91740.0,0.0054]
[1732069970243,0.054422,91741.0,91740.0,0.00096]
[1732069970430,0.054424,91737.0,91725.0,0.19494887]
[1732069970632,0.054424,91737.0,91719.0,0.0351]
[1732069971735,0.054424,91737.0,91719.0,0.089535]
[1732069972043,0.054424,91737.0,91720.0,0.054434]
[1732069973638,0.054424,91737.0,91720.0,0.415234]
[1732069974545,0.054424,91737.0,91721.0,0.054433]
[1732069974841,0.054424,91737.0,91722.0,0.054433]
[1732069975640,0.054424,91737.0,91720.0,0.3608]
[1732069975881,0.38268601,91738.0,91727.0,0.05443]
[1732069975882,0.054425,91736.0,91727.0,0.05443]
[1732069977365,0.02192601,91738.0,91729.0,0.3608]
[1732069977530,0.0051,91748.0,91737.0,0.3608]
[1732069977844,0.054418,91747.0,91738.0,0.054423]
[1732069978143,0.054418,91747.0,91737.0,0.3608]
[1732069978144,0.054415,91753.0,91737.0,0.3608]
[1732069978344,0.054415,91753.0,91744.0,0.05442]
[1732069978542,0.054415,91753.0,91745.0,0.0318]
[1732069979157,0.07088556,91753.0,91746.0,0.3608]
[1732069979544,0.054411,91759.0,91752.0,0.054415]
[1732069979937,0.36136001,91762.0,91748.0,0.054417]
[1732069980140,0.00056001,91762.0,91758.0,0.054411]
[1732069980455,0.054407,91767.0,91758.0,0.054411]
[1732069980636,0.00012238,91768.0,91758.0,0.054411]
[1732069980835,0.00012238,91768.0,91759.0,0.32696]
[1732069981047,0.00012238,91768.0,91767.0,0.054406]
[1732069981750,0.00163464,91790.0,91767.0,0.742126]
[1732069982044,0.00163464,91790.0,91774.0,0.10627738]
[1732069982233,0.00163464,91790.0,91767.0,0.3608]
[1732069982234,0.00163464,91790.0,91788.0,0.054393]
[1732069982953,0.00163464,91790.0,91784.0,0.3608]
[1732069982954,0.00012129,91789.0,91784.0,0.3608]
[1732069983642,0.05451429,91789.0,91784.0,0.3608]
[1732069983837,0.054395,91785.0,91783.0,0.1172]
[1732069986148,0.00012129,91789.0,91784.0,0.32684]
[1732069986348,0.00012129,91789.0,91788.0,0.10627738]
[1732069990148,0.00012129,91789.0,91788.0,0.43311738]
[1732069990543,0.0051,91802.0,91801.0,0.16065838]
[1732069990750,0.0016342,91814.0,91807.0,0.054377]
[1732069991144,0.0016342,91814.0,91802.0,0.0317]
[1732069991145,0.0016342,91814.0,91808.0,0.054376]
[1732069991659,0.00010253,91813.0,91809.0,0.054375]
[1732069992050,0.00010253,91813.0,91811.0,0.054375]
[1732069993657,0.00010253,91813.0,91811.0,0.16065238]
[1732069994847,0.054374,91812.0,91805.0,0.054378]
[1732069995051,0.054374,91812.0,91807.0,0.054377]
[1732069995253,0.054374,91812.0,91810.0,0.054375]
[1732069998171,0.00010253,91813.0,91811.0,0.054374]
[1732069999052,0.00010253,91813.0,91801.0,0.36176]
[1732069999376,0.05438,91803.0,91801.0,0.00096]
[1732069999562,0.061,91802.0,91801.0,0.00096]
[1732069999764,0.054387,91790.0,91786.0,0.36176]
[1732070000154,0.054387,91790.0,91779.0,0.01709797]
[1732070000354,0.415187,91790.0,91775.0,0.11717129]
[1732070000561,0.415187,91790.0,91775.0,0.00013129]
[1732070000884,0.054395,91777.0,91775.0,0.00013129]
[1732070006661,0.054404,91762.0,91761.0,0.00163458]
[1732070008155,0.16068138,91762.0,91761.0,0.00163458]
[1732070008353,0.054412,91749.0,91745.0,0.3608]
[1732070008552,0.0102,91765.0,91752.0,0.05441]
[1732070008762,0.01657961,91768.0,91754.0,0.3608]
[1732070008964,0.01657961,91768.0,91753.0,0.11704]
[1732070008965,0.054407,91758.0,91753.0,0.22331738]
[1732070009164,0.36092784,91776.0,91753.0,0.10627738]
[1732070009165,0.0102,91774.0,91753.0,0.10627738]
[1732070009372,0.36092784,91776.0,91753.0,0.10627738]
[1732070009373,0.37747712,91776.0,91753.0,0.22331738]
[1732070009867,0.37747712,91776.0,91754.0,0.11704]
[1732070010065,0.054406,91759.0,91754.0,0.11704]
[1732070010722,0.3608,91768.0,91754.0,0.11704]
[1732070010857,0.054407,91757.0,91754.0,0.11704]
[1732070012073,0.3608,91768.0,91754.0,0.11704]
[1732070012074,0.054404,91763.0,91754.0,0.11704]
[1732070012569,0.37758221,91768.0,91754.0,0.11704]
[1732070012958,0.054406,91760.0,91754.0,0.11704]
[1732070014368,0.054406,91760.0,91753.0,0.10627738]
[1732070014566,0.054406,91760.0,91755.0,0.11708]
[1732070014877,0.054406,91758.0,91755.0,0.11708]
[1732070015877,0.054407,91756.0,91755.0,0.11708]
[1732070016083,0.37758221,91768.0,91745.0,0.46779738]
[1732070016380,0.05441,91753.0,91752.0,0.11708]
[1732070017868,0.05441,91753.0,91752.0,0.22335738]
[1732070019978,0.054413,91746.0,91745.0,0.01658335]
[1732070020275,0.054413,91746.0,91745.0,0.12112]
[1732070020577,0.054413,91746.0,91745.0,0.48192]
[1732070021761,0.054413,91746.0,91745.0,0.3608]
[1732070031079,0.054413,91746.0,91745.0,0.55574887]
[1732070031267,0.054413,91746.0,91745.0,0.3608]
[1732070032284,0.0647,91754.0,91745.0,0.3608]
[1732070032285,0.054409,91754.0,91745.0,0.3608]
[1732070032480,0.054409,91754.0,91753.0,0.10627738]
[1732070032682,0.054409,91754.0,91753.0,0.30166362]
[1732070032983,0.054409,91754.0,91753.0,0.10627738]
[1732070033171,0.0323,91769.0,91753.0,0.46707738]
[1732070033380,0.0323,91769.0,91754.0,0.1954413]
[1732070033675,0.054407,91756.0,91755.0,0.1954413]
[1732070033898,0.0323,91769.0,91755.0,0.19543396]
[1732070034076,0.04785619,91766.0,91755.0,0.19543396]
[1732070034383,0.054407,91757.0,91756.0,0.19543396]
[1732070035175,0.32696,91757.0,91754.0,0.26052108]
[1732070035475,0.79403738,91756.0,91740.0,0.32457908]
[1732070035676,0.3608,91742.0,91738.0,0.00011042]
[1732070035875,0.054417,91739.0,91738.0,0.00011042]
[1732070040888,0.3608,91742.0,91738.0,0.00011042]
[1732070041798,0.415216,91742.0,91738.0,0.00011042]
[1732070041996,0.054417,91741.0,91738.0,0.00011042]
[1732070042410,0.054417,91740.0,91738.0,0.00011042]
[1732070047706,0.36089806,91739.0,91738.0,0.00011042]
[1732070051326,9.806e-05,91739.0,91738.0,0.00011042]
[1732070053799,9.806e-05,91739.0,91738.0,0.05452842]
[1732070056303,0.05441,91752.0,91750.0,0.05441]
[1732070056903,0.054407,91757.0,91753.0,0.054409]
[1732070057096,0.054407,91757.0,91755.0,0.054408]
[1732070057405,0.054407,91757.0,91756.0,0.0311]
[1732070057604,0.054408,91755.0,91754.0,0.19544411]
[1732070058008,0.054409,91753.0,91752.0,0.19544411]
[1732070058509,0.054409,91753.0,91749.0,0.11704]
[1732070058510,0.05441,91751.0,91749.0,0.11704]
[1732070059316,9.496e-05,91757.0,91746.0,0.10627738]
[1732070059518,9.496e-05,91757.0,91756.0,0.46707738]
[1732070062896,9.496e-05,91757.0,91756.0,0.90031476]
[1732070063100,0.0102,91774.0,91756.0,0.90031476]
[1732070063101,0.064597,91774.0,91756.0,0.90031476]
[1732070063307,0.054397,91774.0,91772.0,0.054397]
[1732070063501,0.054397,91774.0,91771.0,0.10627738]
[1732070063502,0.054397,91774.0,91773.0,0.0637]
[1732070064113,0.0544928,91774.0,91773.0,0.0637]
[1732070064308,9.58e-05,91774.0,91773.0,0.0637]
[1732070064513,9.58e-05,91774.0,91773.0,0.4245]
[1732070066916,9.58e-05,91774.0,91773.0,0.44168729]
[1732070067209,9.58e-05,91774.0,91773.0,0.6364888]
[1732070067603,9.58e-05,91774.0,91773.0,0.44168729]
[1732070068421,0.0102,91790.0,91789.0,0.004]
[1732070068649,0.0102,91807.0,91806.0,0.054378]
[1732070068831,0.0417,91824.0,91808.0,0.10627738]
[1732070069005,0.054384,91795.0,91794.0,0.12214]
[1732070069520,0.05448305,91795.0,91794.0,0.12214]
[1732070070409,0.05448305,91795.0,91794.0,0.0051]
[1732070072707,9.905e-05,91795.0,91794.0,0.0051]
[1732070073204,9.905e-05,91795.0,91794.0,0.0364]
[1732070075324,9.905e-05,91795.0,91794.0,0.0051]
[1732070076414,9.905e-05,91795.0,91794.0,0.16576238]
[1732070077223,9.905e-05,91795.0,91794.0,0.11137738]
[1732070077409,9.905e-05,91795.0,91794.0,0.0051]
[1732070078319,0.03029905,91795.0,91794.0,0.0051]
[1732070082017,0.03029905,91795.0,91787.0,0.00163384]
[1732070082223,0.054388,91788.0,91787.0,0.00163384]
[1732070086018,0.03029905,91795.0,91787.0,0.00163384]
[1732070086019,0.054387,91790.0,91787.0,0.00163384]
[1732070087116,0.054386,91793.0,91787.0,0.00163384]
[1732070087526,9.905e-05,91795.0,91787.0,0.00163384]
[1732070087727,9.905e-05,91795.0,91794.0,0.10627738]
[1732070088517,9.905e-05,91795.0,91794.0,0.23227738]
[1732070090925,0.0051,91812.0,91811.0,0.054375]
[1732070091129,0.0327,91822.0,91811.0,0.59307738]
[1732070091331,0.0327,91822.0,91813.0,0.054374]
[1732070091738,0.054369,91821.0,91813.0,0.054374]
[1732070091924,0.00174741,91814.0,91813.0,0.054374]
[1732070094532,0.00174741,91814.0,91813.0,0.07095821]
[1732070097334,0.00174741,91814.0,91813.0,0.054374]
[1732070100226,0.0051,91829.0,91813.0,0.054374]
[1732070100227,0.054365,91828.0,91813.0,0.054374]
[1732070100428,0.49433379,91848.0,91831.0,0.054363]
[1732070100429,0.0051,91834.0,91831.0,0.054363]
[1732070100640,0.0051,91834.0,91827.0,0.10627738]
[1732070100641,0.032,91840.0,91829.0,0.12596]
[1732070100832,0.05436,91836.0,91835.0,0.16063738]
[1732070101342,0.00011719,91836.0,91835.0,0.16063738]
[1732070104534,0.00011719,91836.0,91835.0,0.26691476]
[1732070104944,0.00011719,91836.0,91835.0,0.16063738]
[1732070105753,0.00011719,91836.0,91835.0,0.26691476]
[1732070106136,0.00011719,91836.0,91835.0,0.16063738]
[1732070106441,0.00011719,91836.0,91835.0,0.26691476]
[1732070107238,0.00163379,91848.0,91846.0,0.054354]
[1732070107435,0.054344,91863.0,91846.0,0.054354]
[1732070107436,0.054344,91863.0,91860.0,0.054345]
[1732070107651,0.054344,91863.0,91861.0,0.16062238]
[1732070108045,0.0102,91879.0,91869.0,0.05434]
[1732070108245,0.054337,91875.0,91869.0,0.05434]
[1732070108452,0.054337,91875.0,91874.0,0.10627738]
[1732070108647,0.054337,91875.0,91869.0,0.05434]
[1732070108852,0.054337,91875.0,91874.0,0.10627738]
[1732070114255,0.03267046,91878.0,91864.0,0.1228]
[1732070114256,0.054343,91865.0,91864.0,0.1228]
[1732070115259,0.0333,91870.0,91864.0,0.1228]
[1732070115950,0.0333,91870.0,91865.0,0.10627738]
[1732070116154,0.3608,91871.0,91869.0,0.05434]
[1732070116368,0.04964391,91878.0,91868.0,0.10627738]
[1732070116557,0.04964391,91878.0,91877.0,0.10627738]
[1732070116741,0.03267046,91878.0,91877.0,0.10627738]
[1732070118661,7.046e-05,91878.0,91877.0,0.16061338]
[1732070119047,7.046e-05,91878.0,91877.0,0.28337338]
[1732070121058,7.046e-05,91878.0,91877.0,0.10627738]
[1732070121247,7.046e-05,91878.0,91876.0,0.0311]
[1732070121452,7.046e-05,91878.0,91875.0,0.3608]
[1732070121453,0.05440546,91878.0,91875.0,0.48356]
[1732070121653,0.3608,91876.0,91866.0,0.0306]
[1732070121861,0.10627738,91870.0,91854.0,0.3907]
[1732070122065,0.10627738,91863.0,91853.0,0.12276]
[1732070122364,0.054348,91856.0,91850.0,0.36335306]
[1732070122558,0.054351,91851.0,91850.0,0.00163306]
[1732070123863,0.3608,91855.0,91850.0,0.00163306]
[1732070124062,0.3777311,91855.0,91850.0,0.00163306]
[1732070124261,0.3608,91855.0,91850.0,0.00163306]
[1732070124858,0.054351,91851.0,91850.0,0.00163306]
[1732070126674,0.16062838,91851.0,91850.0,0.00163306]
[1732070127564,0.3608,91855.0,91850.0,0.00163306]
[1732070127756,0.054347,91858.0,91850.0,0.05598506]
[1732070127962,0.032,91864.0,91857.0,0.10627738]
[1732070128158,0.00517046,91878.0,91870.0,0.054339]
[1732070128360,7.046e-05,91878.0,91877.0,0.10627738]